fUSD/lending_fUSD_20240606
["ID","MTS","AMOUNT","RATE_DAILY","PERIOD"]
[328686312,1717704635355,-1000.0,0.00012386,2]
[328686313,1717704635363,-1000.0,0.00012419,2]
[328686314,1717704635373,-194.50842837,0.00012426,2]
[328686315,1717704635382,-250.0,0.00012427,2]
[328686316,1717704635391,-130.38676008,0.00012427,2]
[328686317,1717704635406,-1855.57005765,0.00012427,2]
[328686318,1717704635426,-5275.6635,0.00012427,2]
[328686366,1717704638250,-575.09237522,0.00012427,2]
[328686367,1717704638321,-9391.90730705,0.00012427,2]
[328686368,1717704638331,-1165.75,0.00012427,2]
[328686369,1717704638341,-299.99,0.00012427,2]
[328686370,1717704638350,-200.0,0.00012431,2]
[328686371,1717704638360,-250.0,0.00012431,2]
[328686372,1717704638370,-1000.0,0.00012453,2]
[328686373,1717704638380,-1737.96869295,0.00012475,2]
[328686374,1717704638392,-206.32227151,0.00012475,2]
[328686375,1717704638402,-144.94140767,0.00012485,2]
[328686376,1717704639048,-3860.08681247,0.00012485,2]
[328686377,1717704639149,-1161.64175597,0.00012485,2]
[328686378,1717704639162,-981.29365494,0.00012485,2]
[328686379,1717704639176,-3852.02636895,0.00012485,2]
[328686380,1717704639188,-242.22,0.00012485,2]
[328686381,1717704639198,-1000.0,0.00012487,2]
[328686382,1717704639212,-1000.0,0.00012521,2]
[328686383,1717704639222,-1000.0,0.00012554,2]
[328686384,1717704639232,-1000.0,0.00012588,2]
[328686385,1717704639242,-1000.0,0.00012622,2]
[328686386,1717704639252,-1000.0,0.00012655,2]
[328686387,1717704639262,-1000.0,0.00012689,2]
[328686388,1717704639272,-1000.0,0.00012723,2]
[328686389,1717704639282,-1000.0,0.00012756,2]
[328686390,1717704639292,-1000.0,0.0001279,2]
[328686391,1717704639301,-1000.0,0.00012824,2]
[328686392,1717704639311,-62.02031942,0.00012858,2]
[328686393,1717704639323,-901.3376186,0.00012858,2]
[328686394,1717704639335,-36.64206198,0.00012858,2]
[328686395,1717704639344,-252.60748658,0.00012891,2]
[328686396,1717704639357,-747.39251342,0.00012891,2]
[328686397,1717704639367,-812.57938274,0.00012925,2]
[328686398,1717704639423,-187.42061726,0.00012925,2]
[328686399,1717704639433,-172.08,0.00012947,2]
[328686400,1717704639443,-161.54828776,0.00013184,2]
[328686401,1717704639455,-928.85702642,0.00013186,2]
[328686402,1717704639495,-1893.85987358,0.00013186,2]
[328686403,1717704639505,-1000.0,0.00013186,2]
[328686404,1717704639515,-1510.2152,0.00013186,2]
[328686405,1717704639526,-161.54828776,0.00013187,2]
[328686406,1717704639537,-181.29276501,0.00013187,2]
[328686407,1717704639547,-4634.45,0.0001322,2]
[328686408,1717704639558,-251.11638913,0.00013284,2]
[328686409,1717704639568,-161.46550851,0.00013284,2]
[328686410,1717704639579,-590.63424287,0.00013284,2]
[328686411,1717704639590,-1247.17779145,0.00013284,2]
[328686412,1717704639600,-155.0,0.00013285,2]
[328686413,1717704639610,-190.70283289,0.00013285,2]
[328686414,1717704639620,-58272.5371088,0.00013286,2]
[328686415,1717704639647,-2125.34602237,0.00013286,2]
[328686418,1717704639660,-67237.73933091,0.00013286,2]
[328686420,1717704639672,-296.2056,0.00013286,2]
[328686422,1717704639686,-39300.14566637,0.00013286,2]
[328686541,1717704641166,-1852.95989709,0.00013286,2]
[328686542,1717704641179,-782.30273728,0.00013286,2]
[328686543,1717704642004,-7035.27335137,0.00013286,2]
[328686544,1717704642014,-166.82,0.00013287,2]
[328686545,1717704642024,-1000.0,0.00013537,2]
[328686546,1717704642033,-500.0,0.00013699,2]
[328686547,1717704642042,-1245.46,0.00013699,2]
[328686548,1717704642051,-2751.0,0.00013699,2]
[328686549,1717704642060,-200.0,0.00013699,2]
[328686550,1717704642069,-526.69,0.0001389,3]
[328686551,1717704642080,-1077.63087328,0.00013897,2]
[328686552,1717704642089,-1000.0,0.000139,2]
[328686553,1717704642099,-3475.28519836,0.000139,2]
[328686554,1717704642112,-173.34981021,0.000139,2]
[328686555,1717704642121,-152.46,0.0001399,2]
[328686556,1717704642131,-152.46,0.0001399,2]
[328686557,1717704642140,-177.60436149,0.0001399,2]
[328686558,1717704642151,-2747.99505851,0.00013996,2]
[328686559,1717704642188,-322.35578445,0.000139,2]
[328686560,1717704642197,-1859.87953653,0.00013996,2]
[328686561,1717704642208,-178.96058679,0.00013997,2]
[328686562,1717704642217,-161.72213921,0.00013997,2]
[328686563,1717704642227,-328.15556144,0.00013997,2]
[328686564,1717704642238,-238.42303214,0.00013997,2]
[328686565,1717704642248,-205.15281241,0.00013998,2]
[328686566,1717704642257,-489.5685208,0.00013998,2]
[328686567,1717704642266,-470.11563465,0.00013998,2]
[328686568,1717704642278,-6562.26994772,0.00013998,2]
[328686569,1717704642289,-503.50731216,0.00013998,2]
[328686570,1717704642298,-592.53428459,0.00014,2]
[328686571,1717704642309,-5428.10759271,0.00014,2]
[328686572,1717704642354,-705.3,0.00014,2]
[328686573,1717704642365,-25720.88611237,0.00014,2]
[328686574,1717704642379,-5000.0,0.00014,2]
[328686575,1717704642398,-865.43927189,0.00014,2]
[328686576,1717704642409,-3812.46253125,0.00014,2]
[328686579,1717704642424,-8165.37499998,0.00014,2]
[328686694,1717704643442,-5272.3212337,0.00014,2]
[328686710,1717704643571,-1554.61160624,0.00014,2]
[328686729,1717704643761,-9220.11576804,0.00014,2]
[328686731,1717704643772,-968.28236418,0.00014,2]
[328686733,1717704643783,-7020.0,0.00014,2]
[328686738,1717704643832,-177137.57230572,0.00014,2]
[328686740,1717704643843,-253.06024106,0.00014,2]
[328686758,1717704644024,-810.84031888,0.00014,2]
[328686767,1717704644106,-1088.25012745,0.00014,2]
[328686769,1717704644118,-9691.0685137,0.00014,2]
[328686771,1717704644130,-2264.61384267,0.00014,2]
[328686773,1717704644143,-1877.05892826,0.00014,2]
[328686775,1717704644154,-4878.59537664,0.00014,2]
[328686778,1717704644167,-2760.82234462,0.00014,2]
[328686780,1717704644180,-2610.57787471,0.00014,2]
[328686782,1717704644191,-5919.86879322,0.00014,2]
[328686784,1717704644202,-2604.18085478,0.00014,2]
[328686786,1717704644214,-652.97929571,0.00014,2]
[328686788,1717704644225,-10502.07299999,0.00014,2]
[328686951,1717704648614,-200.0,0.000138,5]
[328686953,1717704648623,-500.0,0.000139,5]
[328686955,1717704648633,-986.57230058,0.00013999,2]
[328686958,1717704648645,-8229.49937225,0.00013999,2]
[328686960,1717704648654,-5847.10062772,0.00014,2]
[328686964,1717704648682,-1039.42928046,0.00014,2]
[328686966,1717704648693,-4224.95,0.00014,2]
[328686968,1717704648705,-479.00382816,0.00014,2]
[328686970,1717704648718,-1806.68199,0.00014,2]
[328686973,1717704648750,-7051.0,0.00014,2]
[328686974,1717704648763,-18919.99999995,0.00014,2]
[328686975,1717704648774,-1388.41091608,0.00014,2]
[328686976,1717704648785,-705.4,0.00014,2]
[328686977,1717704648797,-3710.33664314,0.00014,2]
[328686978,1717704648821,-572.85,0.00014,2]
[328686979,1717704648832,-492.13663396,0.00014,2]
[328686980,1717704648887,-500.0,0.00014,2]
[328686981,1717704648899,-1886.55320273,0.00014,2]
[328686982,1717704648911,-938.73492399,0.00014,2]
[328686983,1717704648923,-277.63033886,0.00014,2]
[328686984,1717704648936,-2831.76757743,0.00014,2]
[328686985,1717704648948,-18923.64636929,0.00014,2]
[328686986,1717704648970,-3948.1349552,0.00014,2]
[328686987,1717704649027,-4787.51253599,0.00014,2]
[328686988,1717704649101,-259.44000584,0.00014,2]
[328686989,1717704649115,-3521.225,0.00014,2]
[328686990,1717704649127,-24393.0,0.00014,2]
[328686991,1717704649140,-8899.37117706,0.00014,2]
[328686992,1717704649186,-3087.95762999,0.00014,2]
[328687004,1717705495374,150.0,9.931e-05,2]
[328687005,1717705495396,150.0,9.931e-05,2]
[328687006,1717705495418,150.0,9.931e-05,2]
[328687007,1717705495439,150.0,9.931e-05,2]
[328687008,1717705495463,150.0,9.931e-05,2]
[328687009,1717705495483,150.0,9.931e-05,2]
[328687010,1717705495504,150.0,9.931e-05,2]
[328687011,1717705495525,150.0,9.931e-05,2]
[328687012,1717705495548,150.0,9.931e-05,2]
[328687013,1717705495569,150.0,9.931e-05,2]
[328687014,1717705495590,150.0,9.931e-05,2]
[328687015,1717705495612,150.0,9.931e-05,2]
[328687016,1717705495633,150.0,9.931e-05,2]
[328687017,1717705495655,150.0,9.931e-05,2]
[328687018,1717705495676,150.0,9.931e-05,2]
[328687019,1717705495700,150.0,9.931e-05,2]
[328687020,1717705495722,150.0,9.931e-05,2]
[328687021,1717705495744,150.0,9.931e-05,2]
[328687022,1717705495766,150.0,9.931e-05,2]
[328687023,1717705495787,150.0,9.931e-05,2]
[328687024,1717705495810,10120.3621926,9.931e-05,2]
[328687025,1717705498450,-150.0,0.00010029,2]
[328687026,1717705510088,-150.0,0.00010027,2]
[328687027,1717705510601,-150.0,0.00010027,2]
[328687028,1717705538013,150.0,9.927e-05,2]
[328687029,1717705538037,30.49244644,9.927e-05,2]
[328687030,1717705592916,19769.39955785,9.927e-05,2]
[328687031,1717705604940,150.0,9.927e-05,2]
[328687032,1717705604966,150.0,9.927e-05,2]
[328687033,1717705604990,150.0,9.927e-05,2]
[328687034,1717705605013,150.0,9.927e-05,2]
[328687035,1717705605038,176.83724224,9.927e-05,2]
[328687036,1717705605060,150.0,9.927e-05,2]
[328687037,1717705605084,3038.72754076,9.927e-05,2]
[328687038,1717705615784,150.0,9.927e-05,2]
[328687039,1717705615806,150.0,9.927e-05,2]
[328687040,1717705615828,150.0,9.927e-05,2]
[328687041,1717705616018,150.0,9.927e-05,2]
[328687042,1717705616042,150.0,9.927e-05,2]
[328687043,1717705616064,39.20460961,9.927e-05,2]
[328687044,1717705627704,150.0,9.927e-05,2]
[328687045,1717705627727,150.0,9.927e-05,2]
[328687046,1717705627750,42.47512982,9.927e-05,2]
[328687047,1717705676722,150.0,9.927e-05,2]
[328687048,1717705676746,150.0,9.927e-05,2]
[328687049,1717705676768,150.0,9.927e-05,2]
[328687050,1717705676790,150.0,9.927e-05,2]
[328687051,1717705676812,150.0,9.927e-05,2]
[328687052,1717705676836,150.0,9.927e-05,2]
[328687053,1717705676857,150.0,9.927e-05,2]
[328687054,1717705676878,150.0,9.927e-05,2]
[328687055,1717705676900,150.0,9.927e-05,2]
[328687056,1717705676923,150.0,9.927e-05,2]
[328687057,1717705676944,150.0,9.927e-05,2]
[328687058,1717705676965,150.0,9.927e-05,2]
[328687059,1717705676987,150.0,9.927e-05,2]
[328687060,1717705677009,200476.49292566,9.927e-05,2]
[328687061,1717705692653,450.0,9.927e-05,2]
[328687062,1717705693567,1208.55312823,9.927e-05,2]
[328687063,1717705694384,237.18523431,9.927e-05,2]
[328687064,1717705702243,1859.8719,9.924e-05,2]
[328687065,1717705711364,-150.0,0.00010011,2]
[328687066,1717705711548,-150.0,0.00010011,2]
[328687067,1717705711637,-164.93340736,0.00010011,2]
[328687068,1717705715507,-150.0,0.00010011,2]
[328687069,1717705716203,-104.05555928,0.00010011,2]
[328687070,1717705716226,-45.94444072,0.00010011,2]
[328687071,1717705716406,-195.94444072,0.00010011,2]
[328687075,1717705744269,1260.85014342,0.0001001,2]
[328687076,1717705747506,155.0,0.0001001,2]
[328687078,1717705750918,4441.68139867,0.0001001,2]
[328687079,1717705751120,1518.12507907,0.0001001,2]
[328687152,1717705762259,1260.85014342,0.0001001,2]
[328687153,1717705763512,155.49219963,0.0001001,2]
[328687154,1717705768907,4441.68139867,0.0001001,2]
[328687156,1717705780255,748.44185961,0.0001001,2]
[328687157,1717705788922,1451.21048431,0.0001001,2]
[328687158,1717705789233,35465.53151691,0.0001001,2]
[328687161,1717705831519,-791.96732947,0.00010016,2]
[328687162,1717705831528,-150.0,0.00010016,2]
[328687163,1717705831538,-245.64309676,0.00010017,2]
[328687164,1717705831547,-231.05442459,0.00010017,2]
[328687165,1717705831832,-198.48420383,0.00010017,2]
[328687166,1717705831842,-9216.07167283,0.00010017,2]
[328687167,1717705831851,-8689.71006527,0.00010018,2]
[328687168,1717705831860,-208.07331361,0.00010024,2]
[328687169,1717705831870,-690.39,0.00010362,2]
[328687170,1717705831879,-2288.48972159,0.00010671,2]
[328687171,1717705831888,-299.99,0.00010672,2]
[328687172,1717705831897,-250.0,0.00012027,2]
[328687173,1717705831906,-3609.21,0.00012098,2]
[328687174,1717705831916,-470.2,0.00012098,2]
[328687175,1717705831925,-499.99,0.00012098,2]
[328687176,1717705831934,-163.0,0.00012098,2]
[328687177,1717705831943,-200.0,0.00012173,2]
[328687178,1717705831953,-250.0,0.0001225,2]
[328687179,1717705831963,-150.0,0.00012261,2]
[328687180,1717705831972,-158.38,0.00012376,2]
[328687181,1717705831981,-158.38,0.00012426,2]
[328687182,1717705831990,-158.38,0.00012476,2]
[328687183,1717705832000,-158.38,0.00012525,2]
[328687184,1717705832010,-158.38,0.00012575,2]
[328687185,1717705832021,-177.68,0.00012589,2]
[328687186,1717705832030,-158.38,0.00012624,2]
[328687187,1717705832040,-690.39,0.00012626,2]
[328687188,1717705832048,-158.38,0.00012674,2]
[328687189,1717705832057,-158.38,0.00012724,2]
[328687190,1717705832067,-158.38,0.00012773,2]
[328687191,1717705832075,-158.38,0.00012823,2]
[328687192,1717705832084,-158.38,0.00012873,2]
[328687193,1717705832094,-158.38,0.00012922,2]
[328687194,1717705832103,-158.38,0.00012972,2]
[328687195,1717705832112,-158.38,0.00013021,2]
[328687196,1717705832121,-1000.0,0.00013105,2]
[328687197,1717705832130,-610.8421,0.00013186,2]
[328687198,1717705832140,-182.21,0.00013699,2]
[328687199,1717705832150,-622.73,0.00013699,2]
[328687200,1717705832160,-413.35149323,0.00013699,2]
[328687201,1717705832169,-211.3915,0.0001376,2]
[328687202,1717705832178,-486.64566774,0.00013799,2]
[328687203,1717705832188,-500.0,0.000138,5]
[328687204,1717705832197,-150.0,0.000138,2]
[328687205,1717705832206,-20501.72081319,0.00013859,2]
[328687206,1717705832217,-33627.97803897,0.0001386,2]
[328687207,1717705832226,-690.67538,0.0001386,2]
[328687208,1717705832235,-526.69,0.0001389,3]
[328687209,1717705832243,-100000.0,0.000139,2]
[328687210,1717705832252,-3779.17572561,0.000139,2]
[328687211,1717705832263,-1000.0,0.000139,5]
[328687212,1717705832272,-173.34981021,0.000139,2]
[328687213,1717705832281,-176.1287082,0.000139,2]
[328687214,1717705832290,-323.17969144,0.000139,2]
[328687215,1717705832299,-152.48,0.0001399,2]
[328687216,1717705832309,-173.2641146,0.00013999,2]
[328687217,1717705832318,-1000.0,0.00013999,2]
[328687218,1717705832329,-16925.02944441,0.00013999,2]
[328687219,1717705832339,-96004.06741552,0.00014,2]
[328687231,1717705837587,-3263.89566228,0.00014,2]
[328687232,1717705837600,-645.31201752,0.00014,2]
[328687233,1717705837612,-1585.54698249,0.00014,2]
[328687234,1717705837711,-185268.75201811,0.00014,2]
[328687281,1717705838329,-312.33725557,0.00014,2]
[328687283,1717705838342,-2000.0,0.00014,2]
[328687393,1717705840692,-1129.76,0.00014,2]
[328687394,1717705840779,-4919.01299712,0.00014,2]
[328687395,1717705840792,-1734.57372084,0.00014,2]
[328687486,1717705842839,-2364.72804797,0.00013999,2]
[328687488,1717705842849,-12294.82589378,0.00014,2]
[328687490,1717705842861,-1632.33669721,0.00014,2]
[328687492,1717705843198,-177137.57230572,0.00014,2]
[328687493,1717705843249,-386049.71869543,0.00014,2]
[328687494,1717705843260,-2000.0,0.00014,2]
[328687495,1717705843270,-200.0,0.00014,2]
[328687496,1717705843280,-2000.0,0.00014,2]
[328687497,1717705843290,-200.0,0.00014,2]
[328687498,1717705843300,-453.26287484,0.00014105,2]
[328687499,1717705843310,-2000.0,0.0001414,2]
[328687500,1717705843320,-200.0,0.0001414,2]
[328687501,1717705843329,-708.258644,0.0001414,2]
[328687502,1717705843339,-200.0,0.0001414,2]
[328687503,1717705843349,-155.6,0.00014206,2]
[328687504,1717705843359,-155.6,0.00014214,2]
[328687505,1717705843369,-155.6,0.00014223,2]
[328687506,1717705843379,-155.6,0.00014232,2]
[328687507,1717705843390,-155.6,0.00014241,2]
[328687508,1717705843400,-155.6,0.0001425,2]
[328687509,1717705843411,-155.6,0.00014259,2]
[328687510,1717705843422,-155.6,0.00014268,2]
[328687511,1717705843432,-155.6,0.00014277,2]
[328687512,1717705843442,-2000.0,0.00014281,2]
[328687513,1717705843452,-200.0,0.00014281,2]
[328687514,1717705843463,-182.21,0.00014384,2]
[328687515,1717705843475,-1831.94454081,0.00014424,2]
[328687516,1717705843486,-1000.0,0.00014743,2]
[328687517,1717705843498,-3609.21,0.00014838,2]
[328687518,1717705843511,-690.39,0.0001489,2]
[328687519,1717705843521,-526.69,0.00014904,4]
[328687520,1717705843531,-152.48,0.0001499,2]
[328687521,1717705843541,-324212.97551075,0.00015,2]
[328687522,1717705843551,-151.0,0.00015,2]
[328687523,1717705843560,-180.806109,0.00015,2]
[328687525,1717705843572,-151.0,0.00015,2]
[328687526,1717705843582,-151.0,0.00015,2]
[328687527,1717705843592,-162.069663,0.00015,2]
[328687528,1717705843602,-151.0,0.00015,2]
[328687529,1717705843612,-151.0,0.00015,2]
[328687530,1717705843622,-151.0,0.00015,2]
[328687531,1717705843632,-151.0,0.00015,2]
[328687532,1717705843642,-151.0,0.00015,2]
[328687533,1717705843653,-151.0,0.00015,2]
[328687534,1717705843663,-267.159201,0.00015,2]
[328687535,1717705843673,-182.21,0.00015068,2]
[328687536,1717705843684,-161.18267042,0.0001513,2]
[328687537,1717705843694,-3779.17572559,0.00015355,2]
[328687538,1717705843704,-182.21,0.00015753,2]
[328687539,1717705843714,-167.0,0.00015831,2]
[328687540,1717705843725,-526.69,0.0001589,5]
[328687541,1717705843734,-690.67539,0.0001636,2]
[328687543,1717705843744,-1000.0,0.00016382,2]
[328687544,1717705843753,-182.21,0.00016438,2]
[328687545,1717705843764,-3779.17572559,0.00016809,2]
[328687546,1717705843773,-1500.0,0.000169,6]
[328687547,1717705843783,-526.69,0.00016904,6]
[328687548,1717705843793,-690.39,0.00017153,2]
[328687549,1717705843804,-19894.85132513,0.00017225,2]
[328687550,1717705843818,-3385.95,0.00017225,2]
[328687551,1717705843840,-5925.66020814,0.00013999,2]
[328687563,1717705845541,-3290.41146469,0.00013999,2]
[328687565,1717705845551,-664.76385809,0.00017225,2]
[328687567,1717705845560,-3609.21,0.00017578,2]
[328687569,1717705845572,-154.87,0.00017649,2]
[328687570,1717705845582,-526.69,0.0001789,7]
[328687571,1717705845592,-649.22707857,0.00018,2]
[328687572,1717705845602,-1000.0,0.0001802,2]
[328687573,1717705845612,-453.26287483,0.00018054,2]
[328687574,1717705845623,-3779.17572559,0.00018264,2]
[328687575,1717705845633,-2000.0,0.00018356,3]
[328687576,1717705845644,-690.67539,0.0001886,2]
[328687577,1717705845655,-526.69,0.00018904,8]
[328687578,1717705845665,-166.57215857,0.00019178,2]
[328687579,1717705845674,-500.0,0.00019178,2]
[328687580,1717705845684,-500.0,0.00019178,2]
[328687581,1717705845694,-422.73611182,0.00019178,2]
[328687582,1717705845704,-622.73,0.00019178,2]
[328687583,1717705845714,-690.39,0.00019417,2]
[328687584,1717705845725,-1000.0,0.00019658,2]
[328687585,1717705845734,-3779.17572559,0.00019718,2]
[328687586,1717705845743,-526.69,0.0001989,9]
[328687587,1717705845753,-583.2119493,0.000199,3]
[328687588,1717705845763,-953.62985064,0.0002,2]
[328687589,1717705845773,-155.0,0.0002,4]
[328687590,1717705845782,-497.71766581,0.0002,10]
[328687591,1717705845792,-1980.08690757,0.0002,2]
[328687592,1717705845802,-226.60187199,0.000201,2]
[328687593,1717705845812,-527.28,0.00020904,10]
[328687594,1717705845821,-17336.0255701,0.00021,2]
[328687595,1717705845831,-3779.17572559,0.00021173,2]
[328687596,1717705845840,-690.67539,0.0002136,2]
[328687597,1717705845850,-165.61,0.00021505,2]
[328687598,1717705845859,-165.8,0.00021505,2]
[328687599,1717705845876,-22219.26548125,0.00021505,2]
[328687600,1717705845891,-1680.73451875,0.00021505,2]
[328687601,1717705845902,-5703.12,0.00021505,2]
[328687602,1717705845912,-165.61,0.00021559,2]
[328687603,1717705845922,-165.61,0.00021613,2]
[328687604,1717705845932,-2045.62,0.00021677,2]
[328687605,1717705845942,-690.39,0.00021681,2]
[328687606,1717705845951,-573.0,0.000219,2]
[328687607,1717705845961,-323.17969143,0.000219,2]
[328687608,1717705845971,-339.72,0.00021918,2]
[328687609,1717705845982,-151.0,0.00021918,2]
[328687610,1717705845991,-206.54,0.00021918,2]
[328687611,1717705846002,-250.0,0.00021918,2]
[328687612,1717705846011,-453.26287483,0.00022003,2]
[328687614,1717705846021,-3779.17572559,0.00022627,2]
[328687615,1717705846031,-1000.0,0.00023666,2]
[328687616,1717705846041,-172.08,0.00023802,2]
[328687617,1717705846051,-690.67538,0.0002386,2]
[328687618,1717705846061,-543.0,0.000239,2]
[328687619,1717705846070,-690.39,0.00023945,2]
[328687620,1717705846080,-3779.17572559,0.00024082,2]
[328687621,1717705846089,-180.60886659,0.0002421,2]
[328687622,1717705846099,-152.25,0.00024384,2]
[328687623,1717705846108,-440.6,0.00024384,2]
[328687624,1717705846118,-172.7,0.00024384,2]
[328687625,1717705846128,-160.66,0.00024384,2]
[328687626,1717705846138,-161.8,0.00024384,2]
[328687627,1717705846148,-151.0,0.00024658,7]
[328687628,1717705846157,-573.0,0.000247,2]
[328687629,1717705846167,-151.0,0.00024798,7]
[328687630,1717705846176,-153.643662,0.00024798,7]
[328687631,1717705846186,-12370.45355522,0.00024798,2]
[328687632,1717705846199,-1118.02440501,0.00024798,2]
[328687633,1717705846210,-5210.21998197,0.00024798,2]
[328687634,1717705846264,-353.1446308,0.00024798,2]
[328687635,1717705846276,-368.61884552,0.00024798,2]
[328687636,1717705846344,-8822.92768228,0.00024798,2]
[328687637,1717705846354,-28243.3891008,0.00024798,2]
[328687638,1717705846364,-151.0,0.00024798,7]
[328687639,1717705846374,-151.0,0.00024798,7]
[328687640,1717705846384,-151.0,0.00024798,7]
[328687641,1717705846394,-151.0,0.00024798,7]
[328687642,1717705846403,-361.808134,0.00024798,7]
[328687643,1717705846414,-151.0,0.00024798,7]
[328687644,1717705846423,-151.0,0.00024798,7]
[328687645,1717705846433,-361.808134,0.00024798,7]
[328687646,1717705846442,-151.0,0.00024798,7]
[328687647,1717705846452,-151.0,0.00024798,7]
[328687648,1717705846462,-151.0,0.00024798,7]
[328687649,1717705846471,-864.77810417,0.00024799,2]
[328687650,1717705846484,-864.77810411,0.00024799,2]
[328687651,1717705846495,-864.77810411,0.00024799,2]
[328687652,1717705846505,-864.77810411,0.00024799,2]
[328687653,1717705846515,-864.77810411,0.00024799,2]
[328687654,1717705846526,-864.77810411,0.00024799,2]
[328687655,1717705846535,-864.77810411,0.00024799,2]
[328687656,1717705846545,-241.67,0.0002487,15]
[328687657,1717705846555,-150.5,0.0002487,15]
[328687658,1717705846567,-150.5,0.0002488,15]
[328687659,1717705846577,-150.5,0.0002488,15]
[328687660,1717705846587,-150.5,0.0002489,15]
[328687661,1717705846597,-150.5,0.0002489,15]
[328687662,1717705846607,-3000.0,0.000249,2]
[328687663,1717705846616,-706.05483356,0.00025,2]
[328687664,1717705846626,-578.75890957,0.00025,14]
[328687665,1717705846636,-1250.0,0.00025,2]
[328687666,1717705846645,-2000.0,0.000254,2]
[328687667,1717705846656,-2000.0,0.0002541,2]
[328687668,1717705846665,-2199.685899,0.0002542,2]
[328687669,1717705846676,-1236.7112443,0.00025458,7]
[328687670,1717705846686,-1392.11880831,0.00025458,7]
[328687671,1717705846695,-3779.17572559,0.00025536,2]
[328687672,1717705846705,-8174.0,0.000259,5]
[328687673,1717705846715,-500.0,0.00025936,2]
[328687674,1717705846726,-500.0,0.00025936,2]
[328687675,1717705846736,-500.0,0.00025936,2]
[328687676,1717705846746,-500.0,0.00025936,2]
[328687677,1717705846755,-453.26287483,0.00025951,2]
[328687678,1717705846764,-150.0,0.00026031,2]
[328687679,1717705846774,-352.96,0.00026031,2]
[328687680,1717705846784,-163.99,0.00026031,2]
[328687681,1717705846794,-843.8,0.00026031,2]
[328687682,1717705846804,-690.39,0.00026209,2]
[328687683,1717705846814,-452.19863709,0.00026235,2]
[328687684,1717705846824,-864.77810411,0.00026322,2]
[328687685,1717705846833,-28243.3891008,0.00026344,2]
[328687686,1717705846843,-690.67539,0.0002636,2]
[328687687,1717705846853,-445.0,0.00026436,2]
[328687688,1717705846862,-155.81209745,0.0002653,2]
[328687689,1717705846871,-751.9104142,0.0002653,2]
[328687690,1717705846881,-3779.17572559,0.00026991,2]
[328687691,1717705846890,-200.0,0.00027,2]
[328687692,1717705846900,-200.0,0.00027,2]
[328687693,1717705846910,-1300.0,0.00027,2]
[328687694,1717705846920,-2000.0,0.00027,2]
[328687695,1717705846929,-3680.169735,0.0002701,2]
[328687696,1717705846939,-500.0,0.00027032,2]
[328687697,1717705846948,-500.0,0.00027032,2]
[328687698,1717705846959,-500.0,0.00027032,2]
[328687699,1717705846969,-772.0,0.00027093,15]
[328687700,1717705846980,-193.69,0.00027093,15]
[328687701,1717705846989,-772.0,0.00027103,15]
[328687702,1717705846999,-161.95,0.00027103,15]
[328687703,1717705847008,-150.5,0.00027103,15]
[328687704,1717705847019,-150.5,0.00027103,15]
[328687705,1717705847028,-152.56,0.00027103,15]
[328687706,1717705847038,-772.0,0.00027113,15]
[328687707,1717705847047,-164.89,0.00027113,15]
[328687708,1717705847056,-150.5,0.00027113,15]
[328687709,1717705847066,-150.5,0.00027113,15]
[328687710,1717705847075,-150.5,0.00027113,15]
[328687711,1717705847084,-150.5,0.00027113,15]
[328687712,1717705847094,-158.09,0.00027113,15]
[328687713,1717705847103,-204.411714,0.00027123,7]
[328687714,1717705847112,-151.0,0.00027123,7]